bitfinex/quotes_BTCUSD_20251231
["timestamp","ask_amount","ask_price","bid_price","bid_amount"]
[1767181281055,0.0112362,88998.0,88989.0,0.169886]
[1767181281200,0.01123633,88997.0,88989.0,0.169886]
[1767181281609,0.01123709,88991.0,88974.0,0.12242]
[1767181281813,0.12808,88990.0,88987.0,0.049476]
[1767181282033,0.02251633,88997.0,88990.0,0.000549]
[1767181282034,0.07869826,88997.0,88990.0,0.000549]
[1767181282238,0.02251633,88997.0,88990.0,0.000549]
[1767181282415,0.01123646,88996.0,88988.0,0.12242]
[1767181282827,0.01123658,88995.0,88988.0,0.12242]
[1767181283224,0.06741887,88996.0,88988.0,0.12242]
[1767181283573,21.3417545,89000.0,88988.0,0.12242]
[1767181283776,0.06741726,88998.0,88988.0,0.12242]
[1767181284166,0.01123633,88997.0,88988.0,0.12242]
[1767181285915,0.06741658,88999.0,88988.0,0.12242]
[1767181286319,0.01123608,88999.0,88988.0,0.12242]
[1767181286520,0.06741663,88999.0,88988.0,0.12242]
[1767181286758,0.06741734,88998.0,88988.0,0.12242]
[1767181286956,0.0112362,88998.0,88988.0,0.12242]
[1767181288269,21.36427045,89000.0,88988.0,0.12242]
[1767181288405,21.3530345,89000.0,88988.0,0.12242]
[1767181288612,21.3417545,89000.0,88990.0,0.25977131]
[1767181288845,0.01128,88999.0,88991.0,0.12242]
[1767181289048,0.010731,88999.0,88991.0,0.12242]
[1767181290567,21.3417545,89000.0,88991.0,0.12242]
[1767181290886,21.3412045,89000.0,88991.0,0.12242]
[1767181291500,21.3300045,89000.0,88996.0,0.12242]
[1767181291728,21.27962037,89000.0,88996.0,0.12242]
[1767181291956,21.24034756,89000.0,88996.0,0.12242]
[1767181292969,21.22354756,89000.0,88996.0,0.12242]
[1767181293121,21.18320479,89000.0,88996.0,0.12242]
[1767181293330,21.18312873,89000.0,88996.0,0.12242]
[1767181294334,21.18312873,89000.0,88996.0,0.13365646]
[1767181294523,21.18312873,89000.0,88996.0,0.12242]
[1767181295415,21.18312873,89000.0,88997.0,0.01123633]
[1767181295627,21.18312873,89000.0,88998.0,0.12242]
[1767181299558,21.18113156,89000.0,88999.0,0.12242]
[1767181300610,21.18013298,89000.0,88999.0,0.12242]
[1767181301571,20.8386544,89000.0,88999.0,0.1786004]
[1767181302551,20.83765582,89000.0,88999.0,0.1786004]
[1767181303065,20.83765582,89000.0,88999.0,0.12242]
[1767181303615,20.83665724,89000.0,88999.0,0.12242]
[1767181304364,20.83698124,89000.0,88999.0,0.12242]
[1767181304568,20.83598266,89000.0,88998.0,0.06746051]
[1767181304767,20.83598266,89000.0,88999.0,0.12242]
[1767181305569,20.83498408,89000.0,88998.0,0.06746051]
[1767181305773,20.83498408,89000.0,88999.0,0.12242]
[1767181305976,20.83498408,89000.0,88999.0,0.1786004]
[1767181306770,20.8339855,89000.0,88999.0,0.1786004]
[1767181307598,20.83129295,89000.0,88999.0,0.1786004]
[1767181307746,20.83029437,89000.0,88999.0,0.1786004]
[1767181308155,20.83029437,89000.0,88999.0,0.12242]
[1767181308718,20.82929579,89000.0,88998.0,0.05618071]
[1767181308917,20.82929579,89000.0,88999.0,0.12242]
[1767181309755,20.82829721,89000.0,88997.0,0.06741746]
[1767181309965,20.82829721,89000.0,88998.0,0.12822]
[1767181310171,20.82829721,89000.0,88999.0,0.1844004]
[1767181310684,20.82829721,89000.0,88999.0,0.12822]
[1767181310889,20.82729863,89000.0,88998.0,0.12822]
[1767181311091,20.82729863,89000.0,88999.0,0.1844004]
[1767181311333,20.82729863,89000.0,88997.0,0.06741753]
[1767181311334,17.10341649,89000.0,88997.0,0.2359626]
[1767181311572,17.10341649,89000.0,88999.0,0.0561804]
[1767181311573,17.03210246,89000.0,88999.0,0.0561804]
[1767181311773,16.80329202,89000.0,88999.0,0.14640908]
[1767181311995,16.62293049,89000.0,88999.0,0.14640908]
[1767181312166,16.23705743,89000.0,88999.0,0.14640908]
[1767181312404,16.23508406,89000.0,88999.0,0.1844004]
[1767181312855,16.23508406,89000.0,88999.0,0.12822]
[1767181312971,16.23508406,89000.0,88999.0,0.1844004]
[1767181313172,16.23508406,89000.0,88999.0,0.12822]
[1767181313471,0.000549,88999.0,88995.0,0.049476]
[1767181313673,0.01128,88999.0,88996.0,0.01123646]
[1767181313897,0.01128,88999.0,88995.0,0.18893258]
[1767181314122,0.01128,88999.0,88996.0,0.13945646]
[1767181314300,0.01128,88999.0,88996.0,0.12822]
[1767181314498,0.011604,88999.0,88996.0,0.12822]
[1767181314698,0.011604,88999.0,88996.0,0.19563875]
[1767181314928,0.011604,88999.0,88997.0,0.12822]
[1767181315688,0.011604,88999.0,88995.0,0.049476]
[1767181315910,0.000549,88997.0,88995.0,0.049476]
[1767181316112,0.00050646,88997.0,88995.0,0.049476]
[1767181316317,15.81801704,89000.0,88996.0,0.01123646]
[1767181316516,15.26257286,89000.0,88999.0,0.0561804]
[1767181316715,15.27385286,89000.0,88998.0,0.05618103]
[1767181316918,15.27385286,89000.0,88999.0,0.0561804]
[1767181316919,15.25705286,89000.0,88999.0,0.0561804]
[1767181317117,14.74903665,89000.0,88999.0,0.0561804]
[1767181317324,14.68917039,89000.0,88999.0,0.0561804]
[1767181317969,14.68851864,89000.0,88999.0,0.0767104]
[1767181318278,14.68851864,89000.0,88999.0,0.02053]
[1767181318456,14.66257548,89000.0,88999.0,0.0767104]
[1767181318665,14.66257548,89000.0,88999.0,0.0561804]
[1767181319096,14.08516542,89000.0,88996.0,0.03281]
[1767181319250,14.08516542,89000.0,88995.0,0.06071258]
[1767181319461,14.03516542,89000.0,88995.0,0.049476]
[1767181320068,14.03516542,89000.0,88995.0,0.082806]
[1767181320274,14.00406542,89000.0,88995.0,0.082806]
[1767181320654,14.00406542,89000.0,88996.0,0.01123646]
[1767181320860,14.00406542,89000.0,88995.0,0.15022538]
[1767181321104,14.00406542,89000.0,88997.0,0.01123633]
[1767181321275,14.00406542,89000.0,88996.0,0.06741873]
[1767181321460,12.56184787,89000.0,88997.0,0.01123633]
[1767181322468,12.48794787,89000.0,88997.0,0.01123633]
[1767181322688,12.48794787,89000.0,88997.0,0.06741741]
[1767181322894,12.48794787,89000.0,88999.0,0.0561804]
[1767181323768,12.42194787,89000.0,88999.0,0.0561804]
[1767181324279,12.22194787,89000.0,88999.0,0.0561804]
[1767181324550,12.22194787,89000.0,88999.0,0.1348304]
[1767181325381,12.22194787,89000.0,88999.0,0.07865]
[1767181325585,12.22194787,89000.0,88999.0,0.0504858]
[1767181327139,12.22194787,89000.0,88999.0,0.1066662]
[1767181327535,12.21084925,89000.0,88999.0,0.1123604]
[1767181328387,11.40334925,89000.0,88999.0,0.1121904]
[1767181328584,11.40334925,89000.0,88999.0,0.05601]
[1767181329014,11.14514925,89000.0,88998.0,0.05607]
[1767181329193,10.14104925,89000.0,88998.0,0.05607]
[1767181329742,10.14104925,89000.0,88999.0,0.05607]
[1767181329942,9.08104925,89000.0,88999.0,0.07286]
[1767181330270,9.08104925,89000.0,88999.0,0.1290404]
[1767181331328,8.08984242,89000.0,88999.0,0.0561804]
[1767181331528,8.08984242,89000.0,88999.0,0.1553504]
[1767181331824,7.17841246,89000.0,88999.0,0.1773304]
[1767181332464,4.90370202,89000.0,88999.0,0.1773304]
[1767181333830,4.38371145,89000.0,88999.0,0.0561804]
[1767181334046,4.38371145,89000.0,88999.0,0.1844004]
[1767181334258,4.38367016,89000.0,88999.0,0.0561804]
[1767181334470,4.38367016,89000.0,88999.0,0.1844004]
[1767181335078,4.36827016,89000.0,88999.0,0.0561804]
[1767181335282,4.33677016,89000.0,88999.0,0.12822]
[1767181336876,0.00055,88999.0,88995.0,0.177696]
[1767181337076,4.33677016,89000.0,88995.0,0.177696]
[1767181337077,4.33677016,89000.0,88995.0,0.049476]
[1767181340014,4.33677016,89000.0,88995.0,0.255146]
[1767181340225,4.33677016,89000.0,88995.0,0.049476]
[1767181348068,4.33677016,89000.0,88995.0,0.250236]
[1767181348272,4.33677016,89000.0,88995.0,0.049476]
[1767181348612,4.33677016,89000.0,88995.0,0.250236]
[1767181350038,4.31274754,89000.0,88996.0,0.01123646]
[1767181350201,0.05624,88999.0,88997.0,0.01123633]
[1767181350439,0.05624,88999.0,88997.0,0.06741762]
[1767181350569,0.05624,88999.0,88998.0,0.05618103]
[1767181350767,0.05624,88999.0,88997.0,0.06741762]
[1767181350968,0.03204,88999.0,88998.0,0.05618103]
[1767181351368,0.03204,88999.0,88995.0,0.06071258]
[1767181351570,0.03204,88999.0,88996.0,0.01123646]
[1767181351794,0.03204,88999.0,88996.0,0.06741837]
[1767181352146,0.03204,88999.0,88996.0,0.01123646]
[1767181352368,4.18017854,89000.0,88995.0,0.049476]
[1767181352369,0.05624,88998.0,88995.0,0.049476]
[1767181352546,0.05624,88998.0,88995.0,0.053146]
[1767181352690,0.05624,88998.0,88995.0,0.06438258]
[1767181352895,0.05624,88998.0,88995.0,0.12056541]
[1767181353315,0.01128,88997.0,88996.0,0.01123646]
[1767181353493,0.010731,88997.0,88995.0,0.06447258]
[1767181353691,0.010731,88997.0,88996.0,0.0561823]
[1767181353915,0.010731,88997.0,88995.0,0.11689494]
[1767181354741,0.010731,88997.0,88996.0,0.0561823]
[1767181354941,3.99279854,89000.0,88997.0,0.06741748]
[1767181355148,0.01128,88999.0,88997.0,0.06741748]
[1767181355351,0.01128,88999.0,88997.0,0.06741787]
[1767181355549,0.01128,88999.0,88996.0,0.06741862]
[1767181355715,0.01128,88998.0,88995.0,0.049476]
[1767181355916,0.01128,88998.0,88995.0,0.06071258]
[1767181356128,0.01128,88998.0,88995.0,0.11689525]
[1767181356332,0.01128,88998.0,88996.0,0.05618222]
[1767181356534,0.01128,88998.0,88995.0,0.11689525]
[1767181356753,0.01128,88998.0,88995.0,0.049476]
[1767181357780,0.01128,88997.0,88995.0,0.049476]
[1767181358174,0.01128,88996.0,88995.0,0.049476]
[1767181358598,0.01128,88996.0,88995.0,0.063266]
[1767181359221,0.01128,88996.0,88995.0,0.048927]
[1767181360824,0.010731,88996.0,88995.0,0.048927]
[1767181363260,0.01128,88996.0,88995.0,0.048927]
[1767181366993,0.31215,88996.0,88995.0,0.048927]
[1767181367588,0.31215,88996.0,88991.0,0.06071309]
[1767181367789,0.01128,88995.0,88991.0,0.06071309]
[1767181368303,0.01128,88995.0,88992.0,0.01123696]
[1767181368890,0.01128,88995.0,88993.0,0.05618414]
[1767181369204,2.89656954,89000.0,88994.0,0.06742019]
[1767181369405,3.596e-05,88999.0,88997.0,0.06741799]
[1767181369611,3.596e-05,88999.0,88998.0,0.05618103]
[1767181370129,2.85160954,89000.0,88999.0,0.0561804]
[1767181370295,2.86288954,89000.0,88999.0,0.1312304]
[1767181370497,0.59379419,89000.0,88999.0,0.0561804]
[1767181370697,0.25963094,89020.0,89004.0,0.01123545]
[1767181370940,0.30442,89019.0,89017.0,0.05393683]
[1767181371096,0.30442,89019.0,89017.0,0.05283783]
[1767181371298,0.30442,89019.0,88995.0,0.22473164]
[1767181371299,0.30442,89021.0,89003.0,0.01123557]
[1767181371505,0.01128,89022.0,89006.0,0.05393683]
[1767181371506,0.30442,89019.0,89006.0,0.05393683]
[1767181379568,0.30442,89019.0,89006.0,0.02633862]
[1767181380427,0.30442,89019.0,89010.0,0.06740626]
[1767181380825,0.30442,89019.0,88991.0,0.01123709]
[1767181380826,0.30442,89019.0,89011.0,0.06740626]
[1767181380981,0.30442,89019.0,88996.0,0.01123646]
[1767181381182,0.30442,89019.0,89009.0,0.06740626]
[1767181382996,0.30442,89018.0,89009.0,0.06740626]
[1767181384568,0.25958431,89020.0,88992.0,0.05408533]
[1767181384569,0.30442,89009.0,88992.0,0.05408533]
[1767181384831,0.30442,89007.0,88992.0,0.05408533]
[1767181385206,0.30442,89001.0,88989.0,0.07639806]
[1767181385382,0.30442,88999.0,88993.0,0.07639806]
[1767181385558,0.30442,88999.0,88975.0,0.01123911]
[1767181385745,0.30442,88999.0,88976.0,0.06743388]
[1767181385942,0.30442,88999.0,88977.0,0.01123885]
[1767181386141,0.30442,88999.0,88978.0,0.01123873]
[1767181386347,0.30442,88999.0,88979.0,0.0112386]
[1767181386752,0.30442,88999.0,88979.0,0.06743108]
[1767181386973,0.30442,88999.0,88980.0,0.05619213]
[1767181387185,0.30442,88999.0,88987.0,0.08989673]
[1767181387381,0.303871,88999.0,88987.0,0.10113432]
[1767181387586,0.01128,89000.0,88989.0,0.0002]
[1767181388013,0.01073,89000.0,88992.0,0.05618482]
[1767181388374,0.01073,89000.0,88990.0,0.01123721]
[1767181388569,0.05624,88999.0,88992.0,0.31007696]
[1767181388774,0.05624,88999.0,88995.0,0.29884]
[1767181388984,0.05624,88998.0,88997.0,0.29884]
[1767181389174,0.05624,88998.0,88990.0,0.27082152]
[1767181389315,0.05624,88998.0,88991.0,0.29884]
[1767181389717,0.05624,88998.0,88989.0,0.0002]
[1767181389893,0.05624,88998.0,88989.0,0.01143734]
[1767181390092,0.05624,88998.0,88989.0,0.0002]
[1767181390327,0.05624,88998.0,88989.0,0.01143734]
[1767181390990,0.05632338,88998.0,88989.0,0.01143734]
[1767181391404,0.05632338,88998.0,88989.0,0.0002]
[1767181391972,0.05624,88997.0,88989.0,0.0002]
[1767181394378,0.36066,88997.0,88989.0,0.0002]
[1767181394577,0.36066,88997.0,88987.0,0.09006413]
[1767181395729,0.00034487,88987.0,88978.0,0.06743227]
[1767181395883,0.01128,88986.0,88980.0,0.06743074]
[1767181396045,0.01108,88986.0,88982.0,0.01123822]
[1767181396667,0.01108,88986.0,88983.0,0.0674286]
[1767181396888,0.01108,88986.0,88981.0,0.0674301]
[1767181397087,0.01108,88986.0,88982.0,0.01123822]
[1767181397751,0.01108,88986.0,88982.0,0.06742903]
[1767181397960,0.01108,88986.0,88982.0,0.01123822]
[1767181398403,0.01108,88986.0,88981.0,0.06742986]
[1767181398757,0.01108,88986.0,88982.0,0.01123822]
[1767181398962,0.01108,88986.0,88981.0,0.06743001]
[1767181399204,0.01108,88986.0,88982.0,0.01123822]
[1767181399399,0.01108,88986.0,88983.0,0.0112381]
[1767181399609,0.01108,88986.0,88981.0,0.06743001]
[1767181400385,0.01108,88986.0,88982.0,0.01123822]
[1767181400768,0.01108,88986.0,88983.0,0.0112381]
[1767181401445,0.01108,88986.0,88983.0,0.06742843]
[1767181402214,0.01108,88986.0,88983.0,0.0112381]
[1767181402422,0.01128,88985.0,88984.0,0.33548]
[1767181403404,0.01128,88985.0,88983.0,0.06742852]
[1767181403613,0.01128,88985.0,88983.0,0.3467181]
[1767181404039,0.01128,88985.0,88983.0,0.40290857]
[1767181404244,0.00759898,88985.0,88983.0,0.40290857]
[1767181404422,0.00759898,88985.0,88984.0,0.05618987]
[1767181405719,0.00140633,88985.0,88984.0,0.05618987]
[1767181406744,0.04496,88997.0,88987.0,0.01123759]
[1767181407077,0.01128,88996.0,88987.0,0.11012122]
[1767181410382,0.01128,88996.0,88987.0,0.09888363]
[1767181410716,0.01128,88996.0,88988.0,0.01123747]
[1767181410901,0.01128,88996.0,88987.0,0.16630906]
[1767181411380,0.01128,88996.0,88987.0,0.09888363]
[1767181411578,0.01128,88996.0,88987.0,0.11012122]
[1767181412079,0.05624,88995.0,88994.0,0.05618356]
[1767181413034,0.05624,88995.0,88994.0,0.39166356]
[1767181413400,8.338e-05,88998.0,88997.0,0.39166166]
[1767181413620,0.05632338,88998.0,88997.0,0.39166166]
[1767181413852,0.05632338,88998.0,88997.0,0.33548]
[1767181414396,0.05632338,88998.0,88994.0,0.01123671]
[1767181414397,0.000545,88997.0,88994.0,0.01123671]
[1767181414663,0.000545,88997.0,88993.0,0.4029005]
[1767181414868,0.05632338,88998.0,88995.0,0.06741949]
[1767181415038,0.05632338,88998.0,88997.0,0.05618166]
[1767181415827,0.021511,88998.0,88997.0,0.05618166]
[1767181416866,0.021511,88998.0,88996.0,0.0561818]
[1767181417062,0.021511,88998.0,88997.0,0.05618166]
[1767181418450,0.0002,89009.0,88997.0,0.06741799]
[1767181418760,0.0002,89009.0,89000.0,0.01123595]
[1767181418761,0.05624,89008.0,89000.0,0.01123595]
[1767181419148,0.05624,89008.0,89000.0,0.06741537]
[1767181419343,0.05624,89008.0,89001.0,0.01123582]
[1767181419559,0.05624,89008.0,89000.0,0.01123595]
[1767181419896,0.05624,89008.0,89000.0,0.06741555]
[1767181420101,0.05624,89008.0,89001.0,0.01123582]
[1767181422058,0.05286113,89008.0,88999.0,0.0674164]
[1767181422259,0.05286113,89008.0,89001.0,0.01123582]
[1767181422503,0.05286113,89008.0,89000.0,0.06741561]
[1767181422708,0.05286113,89008.0,89000.0,0.01123595]
[1767181423363,0.000545,89000.0,88997.0,0.06741788]
[1767181423700,0.01128,88999.0,88997.0,0.06741796]
[1767181423876,0.01128,88999.0,88997.0,0.01123633]
[1767181424079,0.01128,88999.0,88996.0,0.01123646]
[1767181424477,0.0002,89009.0,88998.0,0.33548]
[1767181424679,0.01128,89008.0,89001.0,0.09888363]
[1767181425031,0.01128,89008.0,89002.0,0.0112357]
[1767181425220,0.01128,89008.0,89004.0,0.05617665]
[1767181425521,0.01128,89008.0,89003.0,0.01123557]
[1767181425666,0.000545,89004.0,89003.0,0.05617788]
[1767181425867,0.01128,89008.0,89003.0,0.06741345]
[1767181426066,0.01128,89008.0,89004.0,0.01123545]
[1767181426509,0.01128,89008.0,89002.0,0.06741414]
[1767181426740,0.01128,89008.0,89003.0,0.01123557]
[1767181426958,0.01128,89008.0,89002.0,0.06741414]
[1767181427182,0.01128,89008.0,89004.0,0.01123545]
[1767181427421,0.01128,89008.0,89003.0,0.01123557]
[1767181427867,0.01128,89008.0,89004.0,0.01123545]
[1767181429054,0.01128,89008.0,89003.0,0.06741344]
[1767181429241,0.01128,89008.0,89004.0,0.01123545]
[1767181429596,0.01128,89008.0,89003.0,0.01123557]
[1767181430012,0.01128,89008.0,89002.0,0.0112357]
[1767181430209,0.00055,89003.0,89002.0,0.05617851]
[1767181430371,0.01128,89008.0,89001.0,0.09888363]
[1767181430568,0.01128,89008.0,89002.0,0.0112357]
[1767181430774,0.01128,89008.0,89001.0,0.11011945]
[1767181431198,0.01128,89008.0,89001.0,0.16629856]
[1767181431373,0.01128,89008.0,89001.0,0.09888363]
[1767181431578,0.01128,89008.0,89001.0,0.11011945]
[1767181431779,0.01128,89008.0,89001.0,0.16629857]
[1767181432095,0.01128,89008.0,89001.0,0.09833363]
[1767181432906,0.01128,89008.0,88998.0,0.25958431]
[1767181433061,0.01128,89008.0,88996.0,0.01123646]
[1767181433563,0.01128,89008.0,88996.0,0.06741845]
[1767181433970,0.01128,89008.0,88997.0,0.0674178]
[1767181434191,0.01128,89008.0,88996.0,0.0561823]
[1767181434382,0.01128,89008.0,88997.0,0.01123633]
[1767181434649,0.01128,89008.0,88996.0,0.0561823]
[1767181434782,0.01128,89008.0,88997.0,0.01123633]
[1767181434986,0.01128,89008.0,88997.0,0.05618164]
[1767181435211,0.01128,89008.0,88997.0,0.01123633]
[1767181435555,0.01128,89008.0,88996.0,0.01123646]
[1767181435758,0.01128,89008.0,88998.0,0.0112362]
[1767181436378,0.01128,89008.0,88998.0,0.0674172]
[1767181436581,0.01128,89008.0,88997.0,0.06741761]
[1767181436721,0.01128,89008.0,88998.0,0.06741717]
[1767181437077,0.01128,89008.0,88998.0,0.0112362]
[1767181437237,0.01128,89008.0,88999.0,0.01123608]
[1767181437646,0.01128,89008.0,88998.0,0.06741671]
[1767181438399,0.01128,89008.0,88997.0,0.01123633]
[1767181438556,0.01128,89008.0,88999.0,0.01123608]
[1767181438783,0.01128,89008.0,88998.0,0.32700598]
[1767181438986,0.01128,89008.0,88999.0,0.01123608]
[1767181439402,0.01128,89008.0,88998.0,0.32700598]
[1767181439842,0.01128,89008.0,88999.0,0.01123608]
[1767181440262,0.01128,89008.0,88998.0,0.32700598]
[1767181440463,0.01128,89008.0,88998.0,0.27082495]
[1767181440605,0.01128,89008.0,88998.0,0.32700587]
[1767181440806,0.01128,89008.0,88999.0,0.01123608]
[1767181441033,0.01128,89008.0,88999.0,0.06741604]
[1767181441247,0.01128,89008.0,89000.0,0.01123595]
[1767181441447,0.01128,89008.0,89001.0,0.05617914]
[1767181441801,0.01128,89008.0,89001.0,0.01123582]
[1767181442012,0.01128,89008.0,89000.0,0.01123595]
[1767181442225,0.01128,89008.0,89002.0,0.0112357]
[1767181442793,0.01128,89008.0,89001.0,0.06741487]
[1767181442794,0.01128,89008.0,89001.0,0.01123582]
[1767181443112,0.01128,89008.0,89002.0,0.0112357]
[1767181443343,0.01128,89008.0,89003.0,0.06741287]
[1767181443556,0.0087971,89008.0,89003.0,0.01123557]
[1767181443805,0.04496,89015.0,89008.0,0.01123494]
[1767181444005,0.20055043,89014.0,89010.0,0.34768]
[1767181444347,0.20000043,89014.0,89012.0,0.34768]
[1767181445242,0.20000043,89014.0,89009.0,0.35891481]
[1767181445440,0.20000043,89014.0,89010.0,0.35891469]
[1767181445804,0.15000043,89014.0,89011.0,0.01123456]
[1767181446002,0.15000043,89014.0,89012.0,0.34768]
[1767181447816,0.15025433,89014.0,89012.0,0.34768]
[1767181448010,0.15025433,89014.0,89009.0,0.35891481]
[1767181448232,0.15025433,89014.0,89009.0,0.41508888]
[1767181448442,0.15025433,89014.0,89009.0,0.347131]
[1767181448647,0.15025433,89014.0,89010.0,0.34768]
[1767181448836,0.07375433,89014.0,89010.0,0.34768]
[1767181449234,0.04765433,89014.0,89010.0,0.35891469]
[1767181449429,0.04765433,89014.0,89009.0,0.01123481]
[1767181449745,0.04765433,89014.0,89008.0,0.00065173]
[1767181451188,0.04765433,89014.0,89008.0,0.01188667]
[1767181451430,0.04765433,89014.0,89008.0,0.00065173]
[1767181452410,0.04765433,89014.0,89008.0,0.06806131]
[1767181452614,0.04765433,89014.0,89008.0,0.01188667]
[1767181453187,0.04765433,89014.0,89009.0,0.4150889]
[1767181453392,0.00055,89009.0,89008.0,0.00065173]
[1767181453560,0.00055,89009.0,88991.0,0.11012072]
[1767181453561,0.34528,89009.0,88991.0,0.11012072]
[1767181453709,0.34528,89009.0,88993.0,0.01123683]
[1767181453904,0.3448364,89009.0,88991.0,0.05618543]
[1767181454123,0.0001064,89009.0,89004.0,0.34768]
[1767181454978,0.0001064,89009.0,89003.0,0.09888363]
[1767181455572,0.0001064,89009.0,89003.0,0.15506137]
[1767181455729,0.0001475,89014.0,89004.0,0.34768]
[1767181455932,0.0001475,89014.0,89004.0,0.66344541]
[1767181455933,0.01128,89013.0,89004.0,0.66344541]
[1767181456199,0.01128,89013.0,89004.0,0.32700086]
[1767181456405,0.01128,89013.0,89005.0,0.01123532]
[1767181456727,0.01128,89013.0,89007.0,0.01123507]
[1767181457127,0.01128,89013.0,89008.0,0.01123494]
[1767181457357,0.01128,89013.0,89007.0,0.06741041]
[1767181457570,0.01128,89013.0,89007.0,0.01123507]
[1767181458296,0.01128,89013.0,89008.0,0.01123494]
[1767181459924,0.01128,89013.0,89002.0,0.3589157]
[1767181460123,0.00055,89008.0,89003.0,0.1101192]
[1767181460451,9.706e-05,89008.0,89004.0,0.01123545]
[1767181460582,0.01128,89013.0,89003.0,0.1101192]
[1767181460782,0.3242,89012.0,89008.0,0.00055]
[1767181461415,9.7e-05,89008.0,89003.0,0.08133411]
[1767181461739,0.3242,89012.0,89003.0,0.08133411]
[1767181462503,0.3242,89012.0,89003.0,0.08123711]
[1767181463334,0.3242,89012.0,89003.0,0.09247268]
[1767181463767,0.01148,89013.0,89003.0,0.09247268]
[1767181464006,0.0002,89013.0,89004.0,0.33802]
[1767181464223,0.01128,89012.0,89006.0,0.06741068]
[1767181464705,0.01128,89012.0,89006.0,0.01123519]
[1767181465062,0.01128,89012.0,89006.0,0.0674111]
[1767181465271,0.01128,89012.0,89006.0,0.01123519]
[1767181465481,0.3242,89011.0,89007.0,0.01123507]
[1767181466266,0.3242,89011.0,89006.0,0.05617581]
[1767181466267,0.3242,89011.0,89006.0,0.067411]
[1767181466882,0.31208656,89011.0,89006.0,0.067411]
[1767181467078,0.01128,89012.0,89007.0,0.01123507]
[1767181467282,0.01128,89012.0,89007.0,0.06741012]
[1767181467479,0.01128,89012.0,89006.0,0.01123519]
[1767181467687,0.01128,89012.0,89007.0,0.01123507]
[1767181468100,0.01128,89012.0,89006.0,0.06741066]
[1767181468519,0.01128,89012.0,89007.0,0.01123507]
[1767181469242,0.01128,89012.0,89006.0,0.06741092]
[1767181469646,0.01128,89012.0,89005.0,0.06741136]
[1767181469857,0.01128,89012.0,89006.0,0.01123519]
[1767181470267,0.01128,89012.0,89007.0,0.01123507]
[1767181470475,0.01128,89012.0,89006.0,0.06741093]
[1767181470675,0.01128,89012.0,89007.0,0.01123507]
[1767181471126,0.01128,89012.0,89006.0,0.01123519]
[1767181471276,0.01128,89012.0,89007.0,0.01123507]
[1767181471909,0.01128,89012.0,89006.0,0.01123519]
[1767181472109,0.01128,89012.0,89005.0,0.01123532]
[1767181472514,0.01128,89012.0,89005.0,0.06741171]
[1767181472690,0.01128,89012.0,89006.0,0.05617536]
[1767181472892,0.01128,89012.0,89005.0,0.06741171]
[1767181473112,0.01128,89012.0,89006.0,0.01123519]
[1767181473510,0.3242,89018.0,89003.0,0.08123711]
[1767181473511,0.0451075,89023.0,89015.0,0.01123406]
[1767181473687,0.01128,89022.0,89015.0,0.01123406]
[1767181474125,0.01128,89022.0,89021.0,1e-08]
[1767181479129,0.01128,89022.0,89021.0,0.33802001]
[1767181479530,0.01128,89022.0,89018.0,0.25958875]
[1767181481009,0.0451075,89032.0,89022.0,0.339119]
[1767181481220,0.01128,89031.0,89023.0,0.33802]
[1767181481429,0.01128,89030.0,89023.0,0.33802]
[1767181481813,0.010731,89030.0,89023.0,0.33802]
[1767181484277,1e-06,89030.0,89025.0,0.33802]
[1767181485931,1e-06,89030.0,89021.0,0.10783912]
[1767181486376,1e-06,89030.0,89021.0,0.45709242]
[1767181486535,1e-06,89030.0,89022.0,0.33802]
[1767181489372,1e-06,89030.0,89025.0,0.65591572]
[1767181489572,1e-06,89030.0,89028.0,0.34273]
[1767181494340,0.0002,89037.0,89030.0,0.34273]
[1767181494570,0.0002,89038.0,89036.0,0.45056912]
[1767181494948,0.0002,89038.0,89036.0,0.10783912]
[1767181495297,0.0002,89038.0,89036.0,0.10763912]
[1767181496129,0.0002,89038.0,89036.0,0.45036912]
[1767181497173,0.0002,89038.0,89036.0,0.10763912]
[1767181497385,0.0002,89038.0,89037.0,0.34273]
[1767181497754,0.0002,89038.0,89036.0,0.45036912]
[1767181498173,0.0002,89038.0,89036.0,0.10763912]
[1767181499715,0.3313,89037.0,89036.0,0.09436711]
[1767181499964,0.3313,89037.0,89027.0,0.25958875]
[1767181500092,0.3313,89037.0,89036.0,0.10783912]
[1767181500297,0.3313,89037.0,89023.0,0.34273]
[1767181500501,0.3313,89037.0,89036.0,0.10783912]
[1767181500927,0.3313,89037.0,89023.0,0.34273]
[1767181501160,0.3313,89037.0,89006.0,0.1492]
[1767181501161,0.01123153,89035.0,89009.0,0.34273]
[1767181501362,0.34258,89034.0,89017.0,0.10783912]
[1767181501843,0.3313,89033.0,89017.0,0.10783912]
[1767181502259,0.33135557,89033.0,89017.0,0.10783912]
[1767181502991,0.33135557,89033.0,89017.0,0.45056912]
[1767181504080,0.33135557,89033.0,89018.0,0.34273]
[1767181504597,5.557e-05,89033.0,88998.0,0.08051321]
[1767181504816,5.557e-05,89033.0,88942.0,0.05625948]
[1767181504817,0.01123721,88990.0,88962.0,0.0002]
[1767181505032,0.01123721,88990.0,88963.0,0.30374281]
[1767181505033,0.03899,88989.0,88963.0,0.30374281]
[1767181505215,0.03899,88989.0,88960.0,0.011241]
[1767181505216,0.05632,88989.0,88961.0,0.34273]
[1767181505415,0.05632,88989.0,88971.0,0.34273]
[1767181505646,0.03899,88995.0,88971.0,0.34273]
[1767181505797,0.01136,88988.0,88971.0,0.34273]
[1767181506001,0.22471267,89003.0,88971.0,0.34273]
[1767181506002,0.01123469,89010.0,88988.0,0.000549]
[1767181506215,0.08489,89006.0,88988.0,0.34273]
[1767181506560,0.08489,88999.0,88972.0,0.34273]
[1767181507137,0.0112362,88998.0,88972.0,0.34273]
[1767181507304,0.01123633,88997.0,88972.0,0.34273]
[1767181507506,0.01136,88996.0,88972.0,0.34273]
[1767181507902,0.01123658,88995.0,88972.0,0.34273]
[1767181508149,0.01136,88996.0,88972.0,0.34273]
[1767181508554,0.01136,88996.0,88971.0,0.00035368]
[1767181508555,0.01136,88996.0,88985.0,0.0002]
[1767181508979,0.02259646,88996.0,88985.0,0.0002]
[1767181509148,0.01136,88996.0,88985.0,0.0002]
[1767181509566,0.01123658,88995.0,88985.0,0.0002]
[1767181509916,0.01123683,88993.0,88985.0,0.0002]
[1767181510116,0.01123696,88992.0,88985.0,0.0002]
[1767181510321,0.01123721,88990.0,88985.0,0.0002]
[1767181510620,0.05618798,88987.0,88985.0,0.0002]